bitfinex/quotes_BTCUSD_20230114
["timestamp","ask_amount","ask_price","bid_price","bid_amount"]
[1673717806348,0.00960123,20890.0,20889.0,1.452253]
[1673717806629,0.00960123,20890.0,20889.0,1.013253]
[1673717807157,0.00960123,20890.0,20889.0,1.90425469]
[1673717807424,0.01435641,20892.0,20890.0,0.10667683]
[1673717807709,0.01435641,20892.0,20891.0,0.317462]
[1673717807979,0.01435641,20892.0,20891.0,2.32606459]
[1673717808759,0.01435641,20892.0,20891.0,2.42606459]
[1673717809058,0.01435641,20892.0,20891.0,2.56406459]
[1673717809340,0.01435641,20892.0,20891.0,2.90326628]
[1673717809608,0.01435641,20892.0,20891.0,2.91293979]
[1673717809872,0.01435641,20892.0,20891.0,2.16406459]
[1673717810600,0.01435641,20892.0,20891.0,1.81196918]
[1673717811127,0.01435641,20892.0,20891.0,1.91029128]
[1673717811381,0.01435641,20892.0,20891.0,1.57108959]
[1673717812170,0.01435641,20892.0,20891.0,1.82524773]
[1673717812431,0.01435641,20892.0,20891.0,1.67108959]
[1673717812704,0.01435641,20892.0,20891.0,1.82392867]
[1673717812978,0.35332036,20892.0,20891.0,0.341162]
[1673717813266,0.4526359,20892.0,20890.0,0.00667683]
[1673717813522,0.3,20891.0,20890.0,0.00667683]
[1673717813779,1.22089741,20891.0,20885.0,0.22110051]
[1673717814039,1.22089741,20891.0,20884.0,0.00613311]
[1673717814040,0.1148,20887.0,20884.0,0.00613311]
[1673717814304,0.1148,20887.0,20884.0,0.27399287]
[1673717815136,0.1278,20887.0,20884.0,0.045]
[1673717815387,0.1278,20887.0,20882.0,0.41685494]
[1673717815388,0.1148,20887.0,20882.0,0.41685494]
[1673717815900,0.1288,20887.0,20884.0,0.27851696]
[1673717816168,0.1288,20887.0,20884.0,0.045]
[1673717816169,0.22292429,20886.0,20884.0,0.045]
[1673717816424,0.1144,20885.0,20884.0,0.00552399]
[1673717817218,1.8281103,20889.0,20884.0,0.43888536]
[1673717817498,1.8281103,20889.0,20885.0,0.45975198]
[1673717817499,0.013,20887.0,20885.0,0.45975198]
[1673717817754,0.32696672,20888.0,20885.0,0.26902603]
[1673717818014,0.32696672,20888.0,20885.0,0.45975198]
[1673717818310,0.32696672,20888.0,20885.0,0.26902603]
[1673717818577,0.22503977,20887.0,20885.0,0.26902603]
[1673717818831,0.33983977,20887.0,20884.0,0.05052399]
[1673717819087,0.33983977,20887.0,20884.0,0.00552399]
[1673717819088,0.1148,20885.0,20884.0,0.00552399]
[1673717819631,0.86994579,20887.0,20884.0,0.218975]
[1673717820176,0.593474,20887.0,20884.0,0.00552399]
[1673717820434,0.1142,20885.0,20884.0,0.00552399]
[1673717820683,0.593012,20885.0,20884.0,0.00552399]
[1673717820985,0.593012,20885.0,20884.0,0.04552399]
[1673717820986,0.893012,20885.0,20884.0,0.04552399]
[1673717821265,0.893012,20885.0,20884.0,0.00552399]
[1673717821523,0.83917562,20885.0,20884.0,0.04552399]
[1673717821777,0.83917562,20885.0,20884.0,0.00552399]
[1673717822029,0.97517562,20885.0,20884.0,0.00952399]
[1673717822325,0.97517562,20885.0,20879.0,0.63671759]
[1673717822326,0.27252627,20884.0,20880.0,0.29967687]
[1673717822587,0.75136927,20884.0,20880.0,0.29967687]
[1673717823359,0.75136927,20884.0,20881.0,0.24008541]
[1673717823360,0.27252627,20884.0,20881.0,0.24008541]
[1673717823645,0.28252627,20884.0,20881.0,0.24008541]
[1673717823905,0.28252627,20884.0,20880.0,0.25399763]
[1673717823906,0.24892914,20883.0,20880.0,0.25399763]
[1673717824176,0.24892914,20883.0,20880.0,0.21799763]
[1673717824433,0.24892914,20883.0,20881.0,0.005]
[1673717824701,0.24892914,20883.0,20880.0,0.21799763]
[1673717824961,0.25892914,20883.0,20880.0,0.25399763]
[1673717826008,0.24892914,20883.0,20880.0,0.21799763]
[1673717826488,0.25192914,20883.0,20881.0,0.005]
[1673717826499,0.24892914,20883.0,20880.0,0.21799763]
[1673717826787,0.25892914,20883.0,20880.0,0.25399763]
[1673717827307,0.25892914,20883.0,20881.0,0.27728984]
[1673717828347,0.01,20883.0,20882.0,0.39947192]
[1673717828610,0.01,20883.0,20882.0,1.19808592]
[1673717829185,0.25419639,20885.0,20883.0,0.26153064]
[1673717829444,0.478767,20887.0,20884.0,0.203358]
[1673717829697,0.24741641,20887.0,20884.0,0.34850354]
[1673717829954,0.27844984,20886.0,20883.0,0.26153064]
[1673717830218,0.135,20885.0,20883.0,0.26553064]
[1673717830488,0.27844984,20886.0,20883.0,0.26153064]
[1673717831000,0.27844984,20886.0,20884.0,0.004]
[1673717832094,0.27844984,20886.0,20883.0,0.26153064]
[1673717832095,0.87164584,20886.0,20883.0,0.26153064]
[1673717832356,0.88664584,20886.0,20883.0,0.30253064]
[1673717832622,0.87164584,20886.0,20883.0,0.26153064]
[1673717832883,0.88064584,20886.0,20884.0,0.04]
[1673717833162,0.87164584,20886.0,20883.0,0.26153064]
[1673717833429,0.88664584,20886.0,20883.0,0.30253064]
[1673717834245,0.40784984,20886.0,20883.0,0.30253064]
[1673717835277,0.40784984,20886.0,20883.0,0.23172595]
[1673717835754,0.015,20886.0,20885.0,0.27247759]
[1673717836018,0.015,20886.0,20885.0,1.91222559]
[1673717836284,0.015,20886.0,20885.0,2.68942728]
[1673717836531,0.01435641,20892.0,20885.0,2.68942728]
[1673717836822,0.23698978,20892.0,20891.0,0.15777759]
[1673717837072,0.23698978,20892.0,20891.0,0.55174854]
[1673717837331,0.23698978,20892.0,20891.0,0.15777759]
[1673717838623,0.23898978,20892.0,20891.0,0.15777759]
[1673717839135,0.25698978,20892.0,20891.0,0.16677759]
[1673717839680,0.23698978,20892.0,20891.0,0.15777759]
[1673717839917,0.01435641,20892.0,20891.0,0.15777759]
[1673717840704,0.13368641,20892.0,20891.0,0.009]
[1673717840988,0.38418684,20892.0,20891.0,0.009]
[1673717841492,1.61942698,20892.0,20886.0,0.478775]
[1673717841748,0.00276985,20890.0,20884.0,0.38584481]
[1673717842275,0.1147,20887.0,20884.0,0.38584481]
[1673717842529,1.072242,20887.0,20884.0,0.15777759]
[1673717842802,0.29335545,20886.0,20884.0,0.27077759]
[1673717843384,0.38459869,20887.0,20884.0,0.52332132]
[1673717843608,0.75860082,20889.0,20885.0,0.23388981]
[1673717843865,0.75860082,20889.0,20886.0,0.19072595]
[1673717843866,0.27986382,20889.0,20886.0,0.19072595]
[1673717844118,0.27986382,20889.0,20887.0,0.15777759]
[1673717844378,0.00276985,20890.0,20887.0,0.34850354]
[1673717844921,0.00276985,20890.0,20888.0,0.26030556]
[1673717845188,0.013,20889.0,20888.0,0.73903656]
[1673717845456,0.00276985,20890.0,20888.0,0.41808315]
[1673717845719,0.26489922,20890.0,20888.0,0.41808315]
[1673717846270,0.25189922,20890.0,20888.0,0.41808315]
[1673717846526,0.26489922,20890.0,20888.0,0.47008315]
[1673717847348,0.26489922,20890.0,20888.0,0.31230556]
[1673717847607,0.01576985,20890.0,20888.0,0.47008315]
[1673717847889,0.01576985,20890.0,20889.0,0.26448242]
[1673717848721,0.00276985,20890.0,20889.0,0.26448242]
[1673717848989,0.00276985,20890.0,20889.0,0.71826358]
[1673717849250,0.01076985,20890.0,20889.0,1.56871658]
[1673717849504,0.01076985,20890.0,20889.0,1.56860988]
[1673717850848,0.01076985,20890.0,20889.0,1.329173]
[1673717851114,0.01076985,20890.0,20889.0,1.58674899]
[1673717851383,0.01076985,20890.0,20889.0,1.60706378]
[1673717851874,0.01076985,20890.0,20889.0,1.5475386]
[1673717855967,6.985e-05,20890.0,20889.0,2.22630064]
[1673717856241,9.85e-06,20890.0,20889.0,3.08874247]
[1673717856515,9.85e-06,20890.0,20889.0,5.12173293]
[1673717856796,9.85e-06,20890.0,20889.0,6.73613941]
[1673717857051,9.85e-06,20890.0,20889.0,5.92957177]
[1673717857298,0.01435641,20892.0,20889.0,7.32294502]
[1673717857561,0.01435641,20892.0,20891.0,0.1148]
[1673717858028,0.01435641,20892.0,20891.0,2.44772569]
[1673717858548,0.01435641,20892.0,20891.0,2.60550328]
[1673717858818,0.01435641,20892.0,20891.0,2.90550328]
[1673717859089,0.01435641,20892.0,20891.0,2.74650328]
[1673717859355,0.01435641,20892.0,20891.0,2.87627527]
[1673717859611,0.01435641,20892.0,20891.0,2.74650328]
[1673717859862,0.01435641,20892.0,20891.0,3.04650328]
[1673717860109,0.01435641,20892.0,20891.0,2.48872569]
[1673717860374,0.01435641,20892.0,20891.0,2.41404093]
[1673717860903,0.11568641,20892.0,20891.0,0.61847659]
[1673717861177,0.33602996,20892.0,20891.0,0.61847659]
[1673717861431,0.33602996,20892.0,20891.0,0.29877759]
[1673717863414,0.81468196,20892.0,20891.0,0.29877759]
[1673717864448,0.81468196,20892.0,20891.0,0.15777759]
[1673717864705,0.62933841,20892.0,20891.0,0.002]
[1673717864966,1.40799041,20892.0,20891.0,0.002]
[1673717866052,1.40799041,20892.0,20889.0,0.95724052]
[1673717866053,1.77938352,20892.0,20889.0,0.95724052]
[1673717866313,0.21673581,20890.0,20889.0,0.95724052]
[1673717866569,1.95282681,20890.0,20889.0,0.95724052]
[1673717867094,1.95282681,20890.0,20889.0,0.96424052]
[1673717867376,1.95282681,20890.0,20889.0,0.95724052]
[1673717867635,2.19851992,20890.0,20889.0,0.96424052]
[1673717868638,2.41360807,20890.0,20889.0,0.96424052]
[1673717868895,2.52770807,20890.0,20889.0,0.96424052]
[1673717869159,2.31261992,20890.0,20889.0,0.96424052]
[1673717869689,2.31261992,20890.0,20887.0,0.32442094]
[1673717869690,2.42470807,20890.0,20887.0,0.32442094]
[1673717869955,2.29880807,20890.0,20889.0,0.007]
[1673717870209,2.52710807,20890.0,20889.0,0.007]
[1673717870759,2.42410807,20890.0,20887.0,0.32442094]
[1673717871028,0.1148,20888.0,20887.0,0.33242094]
[1673717871309,1.551029,20888.0,20887.0,0.32442094]
[1673717871568,1.99372211,20888.0,20887.0,0.32442094]
[1673717872911,2.09672211,20888.0,20887.0,0.33242094]
[1673717873437,2.390783,20888.0,20887.0,0.33242094]
[1673717873749,2.09672211,20888.0,20887.0,0.33242094]
[1673717873994,2.48117152,20888.0,20887.0,0.33242094]
[1673717874243,2.36015333,20888.0,20887.0,0.33242094]
[1673717874525,2.06015333,20888.0,20887.0,0.33242094]
[1673717874772,1.91746022,20888.0,20887.0,0.33242094]
[1673717875836,1.954029,20888.0,20887.0,0.33242094]
[1673717876113,2.31208403,20888.0,20887.0,0.33242094]
[1673717876372,2.39206332,20888.0,20887.0,0.33242094]
[1673717876882,2.09206332,20888.0,20887.0,0.33242094]
[1673717877127,2.39206332,20888.0,20887.0,0.33242094]
[1673717877375,2.09206332,20888.0,20887.0,0.33242094]
[1673717877629,1.94909644,20888.0,20887.0,0.33242094]
[1673717877895,2.39206332,20888.0,20887.0,0.33242094]
[1673717878145,2.24909644,20888.0,20887.0,0.33242094]
[1673717878936,3.32191389,20888.0,20882.0,0.00548712]
[1673717879183,0.2288,20883.0,20882.0,0.00548712]
[1673717879401,1.186516,20883.0,20882.0,0.00548712]
[1673717880156,1.486516,20883.0,20882.0,0.00548712]
[1673717880667,1.72938776,20883.0,20882.0,0.00548712]
[1673717880918,2.07476998,20883.0,20882.0,0.00548712]
[1673717881166,1.72938776,20883.0,20882.0,0.00548712]
[1673717881488,1.72790362,20883.0,20882.0,0.00548712]
[1673717881670,1.62790362,20883.0,20882.0,0.00548712]
[1673717882173,1.89786356,20883.0,20882.0,0.00548712]
[1673717882429,1.8849918,20883.0,20882.0,0.00548712]
[1673717882694,1.61503186,20883.0,20882.0,0.00548712]
[1673717882954,1.48503186,20883.0,20882.0,0.00548712]
[1673717883188,1.62003186,20883.0,20882.0,0.00548712]
[1673717883445,1.48503186,20883.0,20882.0,0.00548712]
[1673717883695,1.89867139,20883.0,20882.0,0.00548712]
[1673717883987,2.0414355,20883.0,20882.0,0.00548712]
[1673717884193,2.73277202,20883.0,20882.0,0.00548712]
[1673717884448,3.32654518,20883.0,20882.0,0.00548712]
[1673717884940,3.46254518,20883.0,20882.0,0.00548712]
[1673717885196,2.8951699,20883.0,20882.0,0.00548712]
[1673717885477,2.83931796,20883.0,20882.0,0.00548712]
[1673717885714,2.83931796,20883.0,20880.0,0.00540237]
[1673717885715,0.1,20882.0,20880.0,0.00540237]
[1673717885971,0.1,20882.0,20878.0,0.00594232]
[1673717885972,1.20295595,20881.0,20878.0,0.00594232]
[1673717886227,0.4426151,20880.0,20878.0,0.00254891]
[1673717886499,0.91960169,20879.0,20876.0,1.36259156]
[1673717886772,0.3444,20877.0,20876.0,1.36259156]
[1673717887005,2.081388,20877.0,20876.0,1.36259156]
[1673717887519,3.10210969,20877.0,20876.0,9.156e-05]
[1673717887818,3.10210969,20877.0,20874.0,0.00635061]
[1673717887819,0.1,20876.0,20874.0,0.00635061]
[1673717888025,2.01923066,20876.0,20874.0,0.00635061]
[1673717888267,2.01923066,20876.0,20875.0,2.912e-05]
[1673717889299,2.15523066,20876.0,20875.0,2.912e-05]
[1673717889536,2.3249074,20876.0,20875.0,2.912e-05]
[1673717889801,1.98267987,20876.0,20875.0,2.912e-05]
[1673717890054,1.46837987,20876.0,20875.0,2.912e-05]
[1673717891313,1.208636,20876.0,20875.0,2.912e-05]
[1673717893063,1.508636,20876.0,20875.0,2.912e-05]
[1673717893325,1.208636,20876.0,20875.0,2.912e-05]
[1673717897738,2.08332917,20876.0,20875.0,2.912e-05]
[1673717898011,2.18140187,20876.0,20875.0,2.912e-05]
[1673717898576,2.83214071,20876.0,20875.0,2.912e-05]
[1673717898847,2.62004923,20876.0,20875.0,2.912e-05]
[1673717900207,3.05826848,20876.0,20875.0,2.912e-05]
[1673717900467,1.58042162,20876.0,20875.0,0.34853266]
[1673717900756,1.31569556,20876.0,20875.0,0.15780671]
[1673717903728,1.71569556,20876.0,20875.0,2.912e-05]
[1673717904798,1.61569556,20876.0,20875.0,2.912e-05]
[1673717905355,1.71569556,20876.0,20875.0,2.912e-05]
[1673717905863,1.61569556,20876.0,20875.0,2.912e-05]
[1673717906158,1.61569556,20876.0,20875.0,0.15780671]
[1673717906680,1.31569556,20876.0,20875.0,0.15780671]
[1673717908026,1.61569556,20876.0,20875.0,0.15780671]
[1673717908287,1.31569556,20876.0,20875.0,0.15780671]
[1673717908552,1.61569556,20876.0,20875.0,0.15780671]
[1673717909096,1.508236,20876.0,20875.0,0.15326385]
[1673717909631,1.74789071,20876.0,20875.0,0.15326385]
[1673717910387,1.44789071,20876.0,20875.0,0.15326385]
[1673717910394,1.74789071,20876.0,20875.0,0.15326385]
[1673717910653,1.63369071,20876.0,20875.0,0.15326385]
[1673717911935,1.63369071,20876.0,20874.0,0.00635061]
[1673717912192,0.4,20875.0,20874.0,0.00635061]
[1673717912446,1.358082,20875.0,20874.0,0.15961446]
[1673717912711,1.472882,20875.0,20874.0,0.15961446]
[1673717913216,1.69766152,20875.0,20874.0,0.15961446]
[1673717913496,2.04060441,20875.0,20874.0,0.15961446]
[1673717913766,1.81582489,20875.0,20874.0,0.15961446]
[1673717915135,1.81582489,20875.0,20874.0,0.00635061]
[1673717915416,2.05355196,20875.0,20874.0,0.00635061]
[1673717915960,2.09413178,20875.0,20874.0,0.00635061]
[1673717916217,2.22507007,20875.0,20874.0,0.15961446]
[1673717916480,1.78212718,20875.0,20874.0,0.15961446]
[1673717916747,1.508882,20875.0,20874.0,0.15961446]
[1673717917008,2.03975315,20875.0,20874.0,0.15961446]
[1673717917519,2.29605427,20875.0,20874.0,0.15961446]
[1673717918384,2.08269338,20875.0,20874.0,0.15961446]
[1673717918622,1.99745595,20875.0,20874.0,0.15961446]
[1673717918625,1.52581572,20875.0,20874.0,0.15961446]
[1673717919400,1.52581572,20875.0,20874.0,0.00635061]
[1673717919665,2.23980923,20875.0,20874.0,0.15961446]
[1673717919910,2.56525073,20875.0,20874.0,0.15961446]
[1673717920156,2.28000361,20875.0,20874.0,0.15961446]
[1673717920404,2.23521801,20875.0,20874.0,0.15961446]
[1673717920759,2.15979543,20875.0,20874.0,0.00635061]
[1673717920936,0.37309062,20874.0,20873.0,0.00270122]
[1673717921188,0.37309062,20874.0,20873.0,0.15596507]
[1673717921189,2.11774009,20874.0,20873.0,0.15596507]
[1673717921436,1.85969587,20874.0,20873.0,0.15596507]
[1673717921685,1.64473821,20874.0,20873.0,0.15396507]
[1673717921938,2.1849521,20874.0,20873.0,0.15396507]
[1673717922445,1.89834189,20874.0,20873.0,0.15396507]
[1673717922693,1.78930593,20874.0,20873.0,0.11197068]
[1673717922941,2.14759239,20874.0,20873.0,0.11197068]
[1673717923473,1.78930593,20874.0,20873.0,0.11197068]
[1673717925577,1.92102671,20874.0,20873.0,0.11197068]
[1673717926049,1.68930593,20874.0,20873.0,0.11197068]
[1673717926558,1.96875923,20874.0,20873.0,0.11197068]
[1673717926828,1.85425923,20874.0,20873.0,0.11197068]
[1673717927132,1.27480593,20874.0,20873.0,0.11197068]
[1673717927341,1.87323477,20874.0,20873.0,0.11197068]
[1673717927594,1.51461359,20874.0,20873.0,0.11197068]
[1673717927814,1.27480593,20874.0,20873.0,0.11197068]
[1673717928076,1.48851031,20874.0,20872.0,0.00581174]
[1673717928334,1.12720687,20873.0,20872.0,0.00581174]
[1673717928583,2.08538087,20873.0,20872.0,0.00581174]
[1673717928850,2.08538087,20873.0,20872.0,0.11778242]
[1673717928851,2.33909747,20873.0,20872.0,0.11778242]
[1673717929104,2.68891641,20873.0,20872.0,0.11778242]
[1673717929643,2.33908735,20873.0,20872.0,0.00581174]
[1673717929907,2.33908735,20873.0,20872.0,0.11778242]
[1673717930106,1.79847912,20873.0,20872.0,0.11778242]
[1673717930394,1.93347912,20873.0,20872.0,0.11778242]
[1673717930646,2.28145362,20873.0,20872.0,0.11778242]
[1673717930901,2.28145362,20873.0,20870.0,0.00557286]
[1673717930902,3.21695943,20873.0,20870.0,0.00557286]
[1673717931164,0.65901896,20871.0,20870.0,0.00557286]
[1673717931425,2.49641796,20871.0,20870.0,0.00557286]
[1673717931682,2.24767693,20871.0,20870.0,0.00557286]
[1673717931934,2.7217791,20871.0,20870.0,0.00557286]
[1673717932207,3.15219806,20871.0,20870.0,0.00557286]
[1673717932417,2.8577791,20871.0,20870.0,0.00557286]
[1673717932664,3.28819806,20871.0,20870.0,0.00557286]
[1673717932932,2.8577791,20871.0,20870.0,0.00557286]
[1673717933191,4.08646577,20871.0,20870.0,0.00557286]
[1673717933447,4.11188577,20871.0,20870.0,0.00557286]
[1673717933963,3.6123636,20871.0,20870.0,0.00557286]
[1673717934218,3.08194464,20871.0,20870.0,0.00557286]
[1673717934475,2.84605713,20871.0,20870.0,0.00557286]
[1673717934732,2.46957957,20871.0,20870.0,0.00557286]
[1673717935014,2.31640019,20871.0,20870.0,0.00557286]
[1673717935261,2.0297643,20871.0,20870.0,0.00557286]
[1673717935526,2.17308668,20871.0,20870.0,0.00557286]
[1673717936358,2.0297643,20871.0,20870.0,0.00557286]
[1673717937141,2.66162694,20871.0,20870.0,0.00557286]
[1673717937414,2.61640988,20871.0,20870.0,0.00557286]
[1673717937715,2.58096123,20871.0,20870.0,0.00557286]
[1673717937977,3.11878161,20871.0,20870.0,0.00557286]
[1673717938757,2.8773821,20871.0,20870.0,0.00557286]
[1673717939024,2.86720483,20871.0,20870.0,0.00557286]
[1673717939284,3.44440652,20871.0,20870.0,0.00557286]
[1673717939535,3.87482548,20871.0,20870.0,0.00557286]
[1673717939793,0.1,20870.0,20869.0,0.03900075]
[1673717940104,1.95021369,20870.0,20869.0,0.03900075]
[1673717940330,2.55975606,20870.0,20868.0,0.04665362]
[1673717940577,0.29331725,20869.0,20868.0,0.04665362]
[1673717940830,1.55167525,20869.0,20868.0,0.04665362]
[1673717941085,1.65167525,20869.0,20868.0,0.04665362]
[1673717941859,1.55167525,20869.0,20868.0,0.04665362]
[1673717942671,2.04491126,20869.0,20868.0,0.03482482]
[1673717942929,2.04490992,20869.0,20868.0,0.03482482]
[1673717943181,2.14490992,20869.0,20868.0,0.03482482]
[1673717943437,1.68667525,20869.0,20868.0,0.03482482]
[1673717943697,1.68667525,20869.0,20867.0,0.00765287]
[1673717943978,0.88090668,20868.0,20867.0,0.00765287]
[1673717944226,1.23914288,20868.0,20867.0,0.04247769]
[1673717944477,2.1247954,20868.0,20867.0,0.04247769]
[1673717945002,0.97232264,20869.0,20867.0,0.23320364]
[1673717945279,0.97232264,20869.0,20867.0,0.33316658]
[1673717945280,1.03593762,20869.0,20867.0,0.33316658]
[1673717945572,0.90093762,20869.0,20867.0,0.33316658]
[1673717945828,0.13,20868.0,20867.0,0.33316658]
[1673717946101,0.26967327,20870.0,20867.0,0.65289958]
[1673717946356,0.13,20869.0,20868.0,0.203786]
[1673717946814,0.26967327,20870.0,20867.0,0.33316658]
[1673717946830,0.26967327,20870.0,20867.0,0.29834176]
[1673717947068,0.80191943,20871.0,20868.0,0.03482482]
[1673717947317,0.13,20870.0,20868.0,0.29120042]
[1673717948304,0.39294582,20871.0,20868.0,0.29120042]
[1673717948305,0.53619811,20871.0,20868.0,0.29120042]
[1673717948562,0.135,20870.0,20868.0,0.48192637]
[1673717948812,0.135,20870.0,20868.0,0.40590042]
[1673717949066,0.135,20870.0,20869.0,0.319733]
[1673717949577,0.135,20870.0,20869.0,0.55625814]
[1673717949836,0.17951714,20871.0,20869.0,0.55625814]
[1673717950090,0.17951714,20871.0,20870.0,0.203732]
[1673717950340,0.17951714,20871.0,20869.0,0.23652514]
[1673717950616,0.17951714,20871.0,20869.0,0.71570414]
[1673717950853,0.17951714,20871.0,20870.0,0.434533]
[1673717951110,0.17951714,20871.0,20870.0,1.392845]
[1673717951371,0.17951714,20871.0,20870.0,1.403845]
[1673717951665,0.18551714,20871.0,20870.0,1.403845]
[1673717951876,0.18312236,20871.0,20870.0,1.403845]
[1673717952129,0.19212236,20871.0,20870.0,1.405845]
[1673717952647,0.17712236,20871.0,20870.0,1.39266703]
[1673717952974,0.1897282,20871.0,20870.0,1.40566703]
[1673717953196,0.1747282,20871.0,20870.0,1.50706703]
[1673717953462,0.1897282,20871.0,20870.0,1.55489185]
[1673717953971,0.18733356,20871.0,20870.0,1.81238655]
[1673717954227,0.18733356,20871.0,20870.0,1.55489185]
[1673717954761,0.1699394,20871.0,20870.0,1.54189185]
[1673717955022,0.1699394,20871.0,20870.0,1.65489185]
[1673717955023,0.1849394,20871.0,20870.0,1.65489185]
[1673717955550,0.1839394,20871.0,20870.0,1.65489185]
[1673717955832,0.18154504,20871.0,20870.0,1.65489185]
[1673717956347,0.18154504,20871.0,20870.0,1.55489185]
[1673717956614,0.18154504,20871.0,20870.0,1.81470914]
[1673717957079,0.17915088,20871.0,20870.0,1.55489185]
[1673717957585,0.17915088,20871.0,20870.0,1.78044313]
[1673717957836,0.17675503,20871.0,20870.0,1.55489185]
[1673717958861,0.17435918,20871.0,20870.0,1.65489185]
[1673717959122,0.17435918,20871.0,20870.0,1.55489185]
[1673717959888,0.171965,20871.0,20870.0,1.55489185]
[1673717960141,0.171965,20871.0,20870.0,1.78662349]
[1673717960673,0.171965,20871.0,20870.0,1.55489185]
[1673717960939,0.171965,20871.0,20870.0,1.65489185]
[1673717960940,0.16957082,20871.0,20870.0,1.65489185]
[1673717961683,0.16957082,20871.0,20870.0,1.55489185]
[1673717961957,0.16717666,20871.0,20870.0,1.55489185]
[1673717962671,0.16717666,20871.0,20870.0,1.84191756]
[1673717962920,0.1647825,20871.0,20870.0,1.7815037]
[1673717963165,0.1647825,20871.0,20870.0,1.55489185]
[1673717963671,0.1507825,20871.0,20870.0,1.64189185]
[1673717963934,0.16238828,20871.0,20870.0,1.65489185]
[1673717964190,0.14838828,20871.0,20870.0,1.52709185]
[1673717964502,0.16238828,20871.0,20870.0,1.54009185]
[1673717964974,0.01136644,20877.0,20870.0,3.16402062]
[1673717965232,0.01136644,20877.0,20876.0,0.1148]
[1673717965491,0.01136644,20877.0,20876.0,2.09685277]
[1673717966069,0.00897037,20877.0,20876.0,1.90612682]
[1673717966587,0.00897037,20877.0,20876.0,1.871302]
[1673717966843,0.00782485,20877.0,20876.0,1.871302]
[1673717967406,0.02182485,20877.0,20876.0,1.90612682]
[1673717967667,0.00782485,20877.0,20876.0,1.90612682]
[1673717967924,0.14067933,20877.0,20876.0,1.90812682]
[1673717968750,0.00553381,20877.0,20876.0,2.00612682]
[1673717969023,0.00853381,20877.0,20876.0,2.08912682]
[1673717969263,0.00853381,20877.0,20876.0,2.24028617]
[1673717969518,0.00853381,20877.0,20876.0,2.27480045]
[1673717969833,0.00314018,20877.0,20876.0,2.19180045]
[1673717970111,0.00714018,20877.0,20876.0,2.32980045]
[1673717970882,0.00474655,20877.0,20876.0,2.04412682]
[1673717971137,0.00474655,20877.0,20876.0,2.29719006]
[1673717971408,0.00074655,20877.0,20876.0,1.90612682]
[1673717971697,0.00474655,20877.0,20876.0,2.04512682]
[1673717971960,0.00235292,20877.0,20876.0,2.04512682]
[1673717972763,0.00235292,20877.0,20876.0,2.25962682]
[1673717973033,0.00235292,20877.0,20876.0,2.55889427]
[1673717973034,2.23e-06,20877.0,20876.0,2.55889427]
[1673717973290,2.23e-06,20877.0,20876.0,2.25962682]
[1673717973553,2.23e-06,20877.0,20876.0,2.55962682]
[1673717974090,2.23e-06,20877.0,20876.0,2.25962682]
[1673717974602,2.23e-06,20877.0,20876.0,2.15962682]
[1673717975106,2.23e-06,20877.0,20876.0,2.27358807]
[1673717976434,2.23e-06,20877.0,20876.0,2.04512682]
[1673717976729,2.23e-06,20877.0,20876.0,2.45922682]
[1673717977795,0.50333423,20878.0,20876.0,2.45922682]
[1673717978081,0.50333423,20878.0,20877.0,0.846536]
[1673717978332,0.50333423,20878.0,20877.0,1.904528]
[1673717978846,0.50093918,20878.0,20877.0,1.904528]
[1673717979441,0.50393918,20878.0,20877.0,2.044528]
[1673717979946,0.50154555,20878.0,20877.0,2.044528]
[1673717980201,0.50154555,20878.0,20877.0,1.77935282]
[1673717980801,0.49915192,20878.0,20877.0,1.77935282]
[1673717981045,0.49915192,20878.0,20877.0,2.07935282]
[1673717981292,0.49915192,20878.0,20877.0,1.77935282]
[1673717981571,0.49915192,20878.0,20877.0,2.07935282]
[1673717981838,0.49675829,20878.0,20877.0,1.77935282]
[1673717982347,0.49675829,20878.0,20877.0,2.07935282]
[1673717982862,0.15420716,20881.0,20878.0,0.1]
[1673717983139,0.15420716,20881.0,20880.0,0.37722482]
[1673717983381,0.15420716,20881.0,20880.0,1.61857571]
[1673717983636,0.15420716,20881.0,20880.0,2.48570376]
[1673717983889,0.15420716,20881.0,20880.0,1.63867982]
[1673717984147,0.15420716,20881.0,20880.0,1.75169275]
[1673717984422,0.15420716,20881.0,20880.0,1.53867982]
[1673717984657,0.15420716,20881.0,20880.0,1.63867982]
[1673717985166,0.15420716,20881.0,20880.0,1.67767982]
[1673717985412,0.15420716,20881.0,20880.0,1.76983392]
[1673717985677,0.15420716,20881.0,20880.0,1.89366257]
[1673717985943,0.15181107,20881.0,20880.0,1.67867982]
[1673717986459,0.15181107,20881.0,20880.0,1.77867982]
[1673717986717,0.15181107,20881.0,20880.0,2.07867982]
[1673717986977,0.14941175,20881.0,20880.0,2.07867982]
[1673717987728,0.14941175,20881.0,20880.0,1.903855]
[1673717987984,0.14701243,20881.0,20880.0,2.07767982]
[1673717988239,0.14701243,20881.0,20880.0,1.93867982]
[1673717988509,0.14701243,20881.0,20880.0,2.07767982]
[1673717988774,0.14701243,20881.0,20880.0,1.83867982]
[1673717989033,0.14461311,20881.0,20880.0,1.93170173]
[1673717989292,0.14461311,20881.0,20880.0,1.79270173]
[1673717989555,0.14461311,20881.0,20880.0,1.97313431]
[1673717989817,0.1422195,20881.0,20880.0,1.83413431]
[1673717990064,0.1422195,20881.0,20880.0,1.44907982]
[1673717990842,0.13982589,20881.0,20880.0,0.97015282]
[1673717991115,0.13982589,20881.0,20880.0,1.56387982]
[1673717991365,0.13982589,20881.0,20880.0,1.42487982]
[1673717991869,0.13743102,20881.0,20880.0,1.78587982]
[1673717992195,0.13743102,20881.0,20880.0,1.48587982]
[1673717992408,0.13743102,20881.0,20880.0,1.78587982]
[1673717992651,0.13743102,20881.0,20880.0,1.88587982]
[1673717992915,0.13503734,20881.0,20880.0,1.88587982]
[1673717993733,1.17802294,20891.0,20880.0,2.55380746]
[1673717993972,0.0126606,20890.0,20885.0,0.75418858]
[1673717994235,0.0126606,20890.0,20889.0,0.14962482]
[1673717994503,0.0126606,20890.0,20889.0,2.20954677]
[1673717995042,0.0126606,20890.0,20889.0,2.31882082]
[1673717995281,0.0126606,20890.0,20889.0,2.79602251]
[1673717995537,0.0126606,20890.0,20889.0,3.34013029]
[1673717995804,0.0126606,20890.0,20889.0,3.58013029]
[1673717996129,0.0126606,20890.0,20889.0,2.93602251]
[1673717996347,0.0126606,20890.0,20889.0,2.01882082]
[1673717996588,0.0126606,20890.0,20889.0,1.31150082]
[1673717997382,0.0126606,20890.0,20889.0,1.6652996]
[1673718001004,0.0126606,20890.0,20889.0,1.63047478]
[1673718001785,0.0119636,20890.0,20889.0,1.63047478]
[1673718002836,0.1132936,20890.0,20889.0,0.14]
[1673718003072,0.50188266,20890.0,20889.0,0.0951]
[1673718003612,1.0066906,20890.0,20885.0,0.75418858]
[1673718004136,0.3,20889.0,20885.0,0.75418858]
[1673718004397,0.478748,20888.0,20885.0,0.75418858]
[1673718004653,0.1139,20887.0,20885.0,0.75418858]
[1673718004924,0.592671,20887.0,20885.0,0.75418858]
[1673718005711,0.73492139,20888.0,20885.0,0.75418858]